bitfinex/quotes_BTCUSD_20220226
["timestamp","ask_amount","ask_price","bid_price","bid_amount"]
[1645899606782,0.61737076,38921.0,38919.0,0.0021]
[1645899606783,1.2,38920.0,38919.0,0.0021]
[1645899606986,1.2,38919.0,38914.0,0.05]
[1645899607180,0.08047045,38912.0,38906.0,0.05]
[1645899607381,0.08047045,38912.0,38896.0,0.0021]
[1645899607382,0.49064959,38912.0,38896.0,0.0021]
[1645899607583,0.02543,38910.0,38898.0,0.0521]
[1645899607785,0.02543,38910.0,38903.0,1.24346401]
[1645899607786,0.08047045,38904.0,38903.0,1.24346401]
[1645899607989,0.08047045,38904.0,38890.0,0.08813639]
[1645899607990,1.604894,38903.0,38890.0,0.08813639]
[1645899608199,0.96,38898.0,38890.0,0.08813639]
[1645899608393,0.08047045,38892.0,38890.0,0.08813639]
[1645899608650,0.31102914,38900.0,38890.0,0.08813639]
[1645899608651,0.00638959,38902.0,38890.0,3.639e-05]
[1645899608846,0.0473,38900.0,38890.0,3.639e-05]
[1645899609041,0.0473,38912.0,38891.0,0.08527]
[1645899609240,0.0473,38912.0,38892.0,0.31102914]
[1645899609440,0.0473,38912.0,38895.0,0.07027]
[1645899609643,0.0473,38912.0,38897.0,0.064286]
[1645899609840,0.02973,38913.0,38899.0,0.128552]
[1645899610141,0.01,38898.0,38896.0,0.31102914]
[1645899610344,0.01,38898.0,38895.0,0.128566]
[1645899610540,0.01,38898.0,38891.0,0.31102914]
[1645899610740,0.01,38898.0,38895.0,0.22463427]
[1645899610943,0.01,38898.0,38897.0,0.00553318]
[1645899611142,0.01,38898.0,38897.0,0.78213318]
[1645899611343,0.01,38898.0,38897.0,1.09316232]
[1645899611542,0.00018305,38899.0,38897.0,1.90014232]
[1645899611742,0.00018305,38899.0,38898.0,0.84240318]
[1645899612045,0.00018305,38899.0,38898.0,0.83152]
[1645899612246,0.00018305,38899.0,38898.0,0.82125]
[1645899612478,0.09446682,38910.0,38898.0,0.82125]
[1645899612679,0.01027,38915.0,38900.0,0.128561]
[1645899612878,0.21912823,38913.0,38901.0,0.01027]
[1645899613078,0.24455823,38913.0,38901.0,0.01027]
[1645899613380,0.24455823,38913.0,38898.0,0.82125]
[1645899613381,0.01,38902.0,38898.0,0.82125]
[1645899613578,0.01,38902.0,38898.0,0.77125]
[1645899614177,0.01034381,38902.0,38898.0,0.77125]
[1645899614780,0.01034381,38902.0,38898.0,0.76625]
[1645899614976,0.01,38902.0,38898.0,0.76625]
[1645899615175,0.00534381,38902.0,38898.0,0.76625]
[1645899615578,0.00534381,38902.0,38899.0,0.3]
[1645899615776,0.00534381,38902.0,38898.0,0.81625]
[1645899616227,0.005,38902.0,38898.0,0.81625]
[1645899616423,0.00534381,38902.0,38898.0,0.81625]
[1645899617429,0.005,38902.0,38898.0,0.81625]
[1645899617624,0.09380998,38909.0,38900.0,0.3]
[1645899617824,0.01027,38914.0,38899.0,0.23283639]
[1645899618027,0.17376037,38915.0,38900.0,0.063285]
[1645899618226,0.40413,38916.0,38901.0,0.24325997]
[1645899618426,0.40413,38916.0,38900.0,0.00619002]
[1645899618427,0.3787,38916.0,38903.0,0.00619002]
[1645899618628,0.3787,38916.0,38904.0,0.00619002]
[1645899618629,0.37864,38916.0,38904.0,0.00619002]
[1645899618928,0.37864,38916.0,38897.0,0.11952954]
[1645899618929,0.09380998,38908.0,38900.0,0.128554]
[1645899619128,0.09380998,38908.0,38901.0,0.77113]
[1645899619129,0.0149744,38903.0,38901.0,0.77113]
[1645899619725,0.32469043,38902.0,38901.0,0.77113]
[1645899619985,0.001,38902.0,38901.0,0.77113]
[1645899620183,0.31969043,38902.0,38901.0,0.77113]
[1645899620382,0.001,38902.0,38901.0,0.77113]
[1645899620982,0.001,38902.0,38901.0,0.76113]
[1645899621484,0.00093116,38902.0,38901.0,0.81113]
[1645899621684,0.00093116,38902.0,38901.0,0.76113]
[1645899621887,0.00084544,38902.0,38901.0,0.76113]
[1645899623284,0.00291128,38902.0,38901.0,0.76113]
[1645899623755,0.00291128,38902.0,38901.0,0.86113]
[1645899623950,0.00291128,38902.0,38901.0,0.89683]
[1645899624152,0.00391128,38902.0,38901.0,0.9187]
[1645899624650,0.00391128,38902.0,38901.0,0.8687]
[1645899625155,0.00387489,38902.0,38901.0,0.80843]
[1645899625552,0.00387489,38902.0,38901.0,0.76113]
[1645899625952,0.08387489,38902.0,38901.0,0.76113]
[1645899626151,0.08387489,38902.0,38901.0,0.18187182]
[1645899627479,0.08,38900.0,38894.0,0.00032071]
[1645899627679,0.17380998,38895.0,38894.0,0.00032071]
[1645899628273,0.17380998,38895.0,38893.0,0.26]
[1645899630279,0.08,38892.0,38889.0,0.00949082]
[1645899630477,0.32549572,38894.0,38889.0,0.00949082]
[1645899630478,0.39869043,38890.0,38889.0,0.00949082]
[1645899630877,0.69875615,38890.0,38889.0,0.00949082]
[1645899631119,0.92069738,38890.0,38889.0,0.00949082]
[1645899631319,0.62063166,38890.0,38889.0,0.00949082]
[1645899631524,0.79439203,38890.0,38889.0,0.00949082]
[1645899631722,0.62063166,38890.0,38889.0,0.00722203]
[1645899631923,0.62063166,38890.0,38889.0,0.00728203]
[1645899632121,0.62063166,38890.0,38889.0,0.00621888]
[1645899632122,0.40075627,38890.0,38889.0,0.00621888]
[1645899632321,0.39575627,38890.0,38889.0,0.00621888]
[1645899632522,0.39575627,38890.0,38881.0,0.00235259]
[1645899632523,0.42118627,38890.0,38881.0,0.00235259]
[1645899632724,0.08047045,38882.0,38881.0,0.00235259]
[1645899632927,0.08,38882.0,38881.0,0.00235259]
[1645899634123,0.13036128,38891.0,38881.0,0.00235259]
[1645899634322,0.13036128,38891.0,38878.0,0.29835259]
[1645899634523,0.0006725,38879.0,38878.0,0.29835259]
[1645899634723,0.0006725,38879.0,38877.0,0.22045518]
[1645899634975,0.05646378,38891.0,38877.0,0.22045518]
[1645899635175,0.05646378,38891.0,38878.0,0.3]
[1645899635378,0.05646378,38891.0,38877.0,0.22045518]
[1645899635581,0.05646378,38891.0,38878.0,0.3]
[1645899635776,0.05646378,38891.0,38879.0,0.00067]
[1645899635978,0.05646378,38891.0,38884.0,0.1736226]
[1645899636178,0.03103378,38891.0,38884.0,0.1736226]
[1645899636577,0.001,38885.0,38884.0,0.1736226]
[1645899636979,0.001,38885.0,38884.0,0.1719929]
[1645899637181,0.001,38885.0,38884.0,0.1669929]
[1645899637984,0.001,38885.0,38879.0,0.00067]
[1645899638390,0.1,38880.0,38879.0,0.00067]
[1645899638658,0.779464,38880.0,38879.0,0.00067]
[1645899638854,0.01027,38880.0,38879.0,0.00067]
[1645899639152,0.31027,38880.0,38879.0,0.00067]
[1645899639354,0.31027,38880.0,38878.0,0.00034415]
[1645899639653,0.01027,38879.0,38878.0,0.00034415]
[1645899640254,0.01027,38881.0,38878.0,0.00034415]
[1645899640452,0.23257809,38883.0,38877.0,0.8543477]
[1645899640453,0.31027,38882.0,38877.0,0.8543477]
[1645899640653,0.01027,38882.0,38878.0,0.26]
[1645899641056,0.20714809,38883.0,38878.0,0.26]
[1645899641654,0.11027,38882.0,38878.0,0.26]
[1645899641855,0.01027,38882.0,38878.0,0.26034415]
[1645899642055,0.379464,38881.0,38878.0,0.26034415]
[1645899642254,0.01027,38880.0,38878.0,0.26034415]
[1645899642482,0.479464,38880.0,38878.0,0.22034415]
[1645899642682,0.69286846,38879.0,38878.0,0.22034415]
[1645899642883,0.00527,38879.0,38878.0,0.22]
[1645899643081,0.01527,38879.0,38878.0,0.22]
[1645899643681,0.01527,38879.0,38878.0,0.3]
[1645899643682,0.01,38879.0,38878.0,0.3]
[1645899644282,0.389744,38881.0,38878.0,0.3]
[1645899644485,0.1,38880.0,38878.0,0.29750265]
[1645899644684,0.380464,38879.0,38878.0,0.29750265]
[1645899645185,0.001,38879.0,38878.0,0.29750265]
[1645899646125,0.001,38879.0,38878.0,0.29548005]
[1645899646523,0.001,38879.0,38878.0,0.7918443]
[1645899646725,0.001,38879.0,38878.0,0.8418443]
[1645899646924,0.001,38879.0,38878.0,0.8891443]
[1645899647122,0.001,38879.0,38878.0,0.8994143]
[1645899647423,0.001,38879.0,38878.0,0.59753806]
[1645899648425,0.001,38879.0,38878.0,0.60753806]
[1645899651078,0.001,38879.0,38878.0,1.09439015]
[1645899651288,0.3918,38897.0,38878.0,1.09439015]
[1645899651289,0.3918,38897.0,38887.0,0.02543]
[1645899651490,0.2316805,38905.0,38890.0,0.08]
[1645899651491,0.00032257,38894.0,38890.0,0.08]
[1645899652178,0.00032257,38894.0,38892.0,0.08]
[1645899652579,0.00032244,38894.0,38892.0,0.08]
[1645899652984,0.00032244,38894.0,38893.0,0.10543]
[1645899653381,0.00032244,38894.0,38893.0,0.20273]
[1645899653636,0.00080905,38902.0,38893.0,0.267019]
[1645899653838,0.00080905,38902.0,38893.0,0.49080575]
[1645899654036,0.00032244,38895.0,38894.0,0.10543]
[1645899654336,0.00032244,38895.0,38894.0,0.20273]
[1645899654635,2.44e-06,38895.0,38894.0,0.30273]
[1645899654839,0.31214624,38916.0,38912.0,0.17112009]
[1645899655038,0.26224017,38910.0,38907.0,0.064273]
[1645899656036,0.26224017,38910.0,38906.0,0.05]
[1645899656037,0.26224017,38910.0,38908.0,0.22057994]
[1645899656440,0.26224017,38910.0,38909.0,0.06891868]
[1645899656838,0.25224017,38910.0,38909.0,0.0473]
[1645899657036,0.0063,38918.0,38911.0,0.064264]
[1645899657245,0.0063,38918.0,38915.0,0.02543]
[1645899657497,0.0063,38918.0,38917.0,0.90203]
[1645899657498,0.0001,38918.0,38917.0,0.90203]
[1645899657693,0.01,38929.0,38918.0,1.05]
[1645899657889,0.01,38929.0,38920.0,0.02543]
[1645899658090,0.01,38929.0,38921.0,0.0473]
[1645899658289,0.005,38929.0,38921.0,0.0473]
[1645899658691,0.18366221,38925.0,38921.0,0.0473]
[1645899658889,0.005,38929.0,38922.0,0.3]
[1645899659095,0.005,38929.0,38924.0,0.064244]
[1645899659289,0.12876037,38935.0,38925.0,0.0473]
[1645899659490,0.01027,38934.0,38926.0,0.32543]
[1645899659689,0.01027,38934.0,38927.0,0.07273]
[1645899659890,8.89057876,38938.0,38927.0,0.0473]
[1645899660189,0.00034403,38932.0,38927.0,0.18696436]
[1645899660390,0.00034403,38932.0,38927.0,0.16153436]
[1645899660588,0.00034403,38932.0,38928.0,0.064236]
[1645899660889,8.89057876,38938.0,38930.0,0.02543]
[1645899661127,0.0013759,38937.0,38932.0,0.08965683]
[1645899661327,0.0013759,38937.0,38933.0,0.0473]
[1645899661927,0.0013759,38937.0,38934.0,0.064227]
[1645899662130,8.89057876,38938.0,38934.0,0.064227]
[1645899662330,0.00034401,38937.0,38935.0,0.0473]
[1645899662729,8.87592277,38938.0,38935.0,0.0473]
[1645899664335,8.87592277,38938.0,38935.0,0.02882905]
[1645899665711,8.87592277,38938.0,38933.0,0.26]
[1645899666412,8.87092277,38938.0,38933.0,0.26]
[1645899667214,10.07092277,38938.0,38933.0,0.26]
[1645899669233,10.07092277,38938.0,38933.0,0.67423]
[1645899669433,10.07092277,38938.0,38934.0,0.0473]
[1645899669434,10.06092277,38938.0,38934.0,0.0473]
[1645899669831,10.06092277,38938.0,38935.0,0.80203]
[1645899670033,10.06092277,38938.0,38936.0,0.07273]
[1645899670230,10.06092277,38938.0,38936.0,0.201159]
[1645899670435,10.06092277,38938.0,38937.0,0.90203]
[1645899670733,10.06092277,38938.0,38937.0,0.89933]
[1645899671132,10.06092269,38938.0,38937.0,0.89933]
[1645899671332,10.06092269,38938.0,38937.0,1.17892823]
[1645899672142,10.06092269,38938.0,38937.0,1.07892823]
[1645899672377,10.06092269,38938.0,38937.0,0.99933]
[1645899672582,10.06092269,38938.0,38937.0,0.17573]
[1645899672784,10.06092269,38938.0,38934.0,0.25686126]
[1645899672785,10.29248708,38938.0,38934.0,0.128431]
[1645899673179,0.3,38937.0,38933.0,0.26]
[1645899673377,0.3,38937.0,38934.0,0.76063752]
[1645899673378,0.266,38937.0,38934.0,0.76063752]
[1645899673577,0.17896266,38936.0,38934.0,0.76063752]
[1645899673777,0.4,38935.0,38934.0,0.76063752]
[1645899673981,1.2,38934.0,38921.0,0.05]
[1645899674177,0.21239266,38936.0,38921.0,0.05]
[1645899674178,1.0106,38933.0,38921.0,0.05]
[1645899674378,0.22543,38932.0,38912.0,0.0999]
[1645899674577,0.12543,38926.0,38912.0,0.0999]
[1645899674781,0.21894383,38921.0,38913.0,0.22665052]
[1645899674977,0.21894383,38921.0,38906.0,0.3176]
[1645899675177,0.3,38920.0,38906.0,0.5]
[1645899675379,0.3,38920.0,38904.0,0.410577]
[1645899675680,0.3,38920.0,38906.0,0.00064642]
[1645899676130,0.3,38920.0,38909.0,0.17074541]
[1645899676331,0.01026,38922.0,38915.0,0.18670207]
[1645899676530,1.1098,38930.0,38915.0,0.18670207]
[1645899676531,0.48398875,38929.0,38915.0,0.18670207]
[1645899677131,0.48398875,38929.0,38915.0,0.18170207]
[1645899677335,0.25812997,38928.0,38915.0,0.18170207]
[1645899677536,0.17658447,38922.0,38915.0,0.18170207]
[1645899679533,0.3,38921.0,38907.0,0.05]
[1645899679735,0.3,38921.0,38906.0,0.00137672]
[1645899679994,0.11026,38920.0,38906.0,0.00137672]
[1645899680188,0.02543,38918.0,38903.0,2.0855663]
[1645899680390,0.01027,38917.0,38906.0,0.00137663]
[1645899680587,0.22162738,38914.0,38906.0,0.19080785]
[1645899681188,0.3,38913.0,38906.0,0.19080785]
[1645899681391,0.22098427,38914.0,38906.0,0.18943122]
[1645899682290,0.3,38913.0,38906.0,0.18943122]
[1645899682503,0.1,38911.0,38899.0,0.337]
[1645899682694,0.1,38911.0,38898.0,0.0011]
[1645899682695,0.32543,38910.0,38898.0,0.0011]
[1645899682897,0.3357,38910.0,38898.0,0.0011]
[1645899683101,0.09994,38908.0,38898.0,0.0011]
[1645899683293,0.31027,38907.0,38898.0,0.0011]
[1645899683498,0.20377849,38904.0,38898.0,0.0011]
[1645899683736,0.29694849,38904.0,38898.0,0.0011]
[1645899683938,0.59694849,38904.0,38900.0,0.0003439]
[1645899684335,0.09317,38904.0,38900.0,0.0003439]
[1645899684735,0.3,38907.0,38900.0,0.0003439]
[1645899684935,0.31027,38909.0,38898.0,0.0011]
[1645899685142,0.31027,38909.0,38900.0,0.0003439]
[1645899685336,0.23900045,38907.0,38900.0,0.0003439]
[1645899686035,0.23900045,38907.0,38896.0,0.22724978]
[1645899686236,0.3,38906.0,38896.0,0.22724978]
[1645899686436,0.3,38906.0,38900.0,0.0003439]
[1645899687040,0.3,38906.0,38894.0,0.0011]
[1645899687041,0.379464,38900.0,38894.0,0.0011]
[1645899687239,0.379464,38900.0,38894.0,0.0001]
[1645899687240,0.09994,38896.0,38894.0,0.0001]
[1645899687486,0.31027,38895.0,38893.0,0.0021]
[1645899687688,0.09994,38894.0,38893.0,0.0018]
[1645899687882,0.01027,38894.0,38893.0,0.0018]
[1645899688083,0.20413639,38894.0,38893.0,0.0018]
[1645899688284,0.20413639,38894.0,38881.0,0.0997419]
[1645899688485,0.19915875,38902.0,38885.0,0.06431]
[1645899688486,0.3,38899.0,38885.0,0.06431]
[1645899688687,0.01028,38901.0,38886.0,0.3003437]
[1645899688883,0.09994,38904.0,38886.0,0.3003437]
[1645899688884,0.00034359,38898.0,38886.0,0.3003437]
[1645899689083,0.00034359,38898.0,38886.0,0.0003437]
[1645899689483,0.23146586,38896.0,38886.0,0.0003437]
[1645899689684,0.11021,38904.0,38884.0,0.369313]
[1645899690085,0.00034361,38898.0,38889.0,0.00034368]
[1645899690684,0.00034361,38898.0,38893.0,0.21511357]
[1645899690985,0.01027,38907.0,38894.0,0.3]
[1645899691237,0.00034363,38898.0,38894.0,0.37577367]
[1645899691435,0.00034363,38898.0,38895.0,0.807029]
[1645899691632,0.00034363,38898.0,38896.0,0.32543]
[1645899691833,0.00034363,38898.0,38897.0,0.004999]
[1645899692032,0.00034363,38898.0,38897.0,0.304999]
[1645899692232,0.20087694,38905.0,38899.0,0.27974286]
[1645899692434,0.17372875,38912.0,38900.0,0.364285]
[1645899692839,0.17372875,38912.0,38900.0,0.064285]
[1645899693040,0.17372875,38912.0,38900.0,0.364285]
[1645899693436,0.17372875,38912.0,38908.0,0.21202254]
[1645899693636,0.21039097,38916.0,38908.0,0.21202254]
[1645899694037,0.21039097,38916.0,38903.0,0.058559]
[1645899694335,0.21039097,38916.0,38901.0,0.32543]
[1645899694737,0.21039097,38916.0,38903.0,0.02543]
[1645899694981,0.21039097,38916.0,38909.0,0.18472213]
[1645899694982,0.00034357,38911.0,38909.0,0.18472213]
[1645899695381,0.00034357,38911.0,38903.0,0.364281]
[1645899695586,0.00034357,38911.0,38903.0,0.064281]
[1645899695782,0.21039097,38916.0,38903.0,0.064281]
[1645899695982,0.21039097,38916.0,38904.0,0.3]
[1645899695983,0.00034358,38909.0,38904.0,0.3]
[1645899696184,0.00034358,38909.0,38903.0,0.064281]
[1645899696388,0.00034358,38909.0,38905.0,0.2002677]
[1645899696986,0.21039097,38916.0,38905.0,0.2002677]
[1645899697186,0.00034358,38909.0,38900.0,0.3]
[1645899697388,0.00034358,38909.0,38899.0,0.3]
[1645899697989,0.00034358,38909.0,38901.0,0.7766]
[1645899698196,0.00034358,38909.0,38900.0,0.175868]
[1645899698197,0.3786,38921.0,38903.0,0.02543]
[1645899698390,0.3786,38921.0,38904.0,0.0473]
[1645899698635,0.0003436,38906.0,38905.0,0.3473]
[1645899698837,0.0003436,38906.0,38905.0,1.0800174]
[1645899699035,0.0003436,38906.0,38905.0,1.1300174]
[1645899699235,0.0003436,38906.0,38905.0,1.1554474]
[1645899699436,0.3786,38921.0,38909.0,0.96941]
[1645899699836,0.3786,38921.0,38910.0,0.0973]
[1645899700038,0.3786,38921.0,38911.0,0.3]
[1645899700237,0.3786,38921.0,38912.0,0.11155971]
[1645899700739,0.00018417,38918.0,38913.0,0.064262]
[1645899700936,0.00018417,38918.0,38912.0,0.0473]
[1645899701336,0.37378417,38921.0,38912.0,0.0473]
[1645899701736,0.37378417,38921.0,38915.0,0.20053661]
[1645899702389,0.23956073,38920.0,38915.0,0.20053661]
[1645899702784,0.37378417,38921.0,38915.0,0.20053661]
[1645899702984,0.37355817,38921.0,38915.0,0.45053661]
[1645899703185,0.00018405,38920.0,38915.0,0.45053661]
[1645899704186,0.01026,38929.0,38915.0,0.57905461]
[1645899704386,0.00033723,38920.0,38915.0,0.57905461]
[1645899704689,0.00033723,38920.0,38915.0,0.57715461]
[1645899704890,0.00033723,38920.0,38915.0,0.64141361]
[1645899705389,0.21946782,38925.0,38915.0,0.64141361]
[1645899705586,0.00033723,38920.0,38915.0,1.41801361]
[1645899705787,0.00033723,38920.0,38915.0,0.64141361]
[1645899706629,0.21946782,38925.0,38915.0,0.64141361]
[1645899706830,0.00033723,38920.0,38915.0,0.64141361]
[1645899707631,0.00033723,38920.0,38915.0,1.41801361]
[1645899707831,0.21946782,38925.0,38915.0,0.64141361]
[1645899708032,0.00034365,38920.0,38915.0,0.64141361]
[1645899708634,0.00034365,38920.0,38915.0,1.41801361]
[1645899708931,0.22084224,38925.0,38915.0,1.41801361]
[1645899708932,0.21946782,38925.0,38915.0,1.41801361]
[1645899709131,0.00034365,38920.0,38915.0,1.41801361]
[1645899709333,0.00034365,38920.0,38915.0,0.64141361]
[1645899709878,0.00034365,38920.0,38915.0,1.41801361]
[1645899710077,0.00034365,38920.0,38915.0,0.64141361]
[1645899710278,0.31026,38931.0,38915.0,0.73109762]
[1645899710478,0.00034365,38920.0,38916.0,0.02543]
[1645899710682,0.00034365,38920.0,38915.0,0.70566762]
[1645899710683,0.00034365,38920.0,38918.0,0.80203]
[1645899710881,0.00034365,38920.0,38917.0,0.0473]
[1645899710882,0.00034365,38920.0,38919.0,0.84933]
[1645899711083,0.00034365,38920.0,38919.0,1.67016]
[1645899711289,0.38641807,38932.0,38921.0,0.7766]
[1645899711483,0.38641807,38932.0,38927.0,0.19802329]
[1645899711680,0.38641807,38932.0,38927.0,0.19732329]
[1645899712692,0.38641807,38932.0,38927.0,0.19060029]
[1645899712885,2.18964107,38943.0,38928.0,0.7766]
[1645899713088,2.18964107,38943.0,38930.0,0.12847]
[1645899713281,2.18964107,38943.0,38931.0,0.0473]
[1645899713282,1.97595075,38943.0,38931.0,0.0473]
[1645899713735,0.3,38937.0,38931.0,0.0473]
[1645899713940,0.3,38937.0,38923.0,0.06424144]
[1645899713941,0.09459999,38930.0,38927.0,0.0473]
[1645899714132,0.09459999,38930.0,38928.0,0.77065]
[1645899715232,0.3,38929.0,38928.0,0.77065]
[1645899715433,0.09459999,38930.0,38928.0,0.77065]
[1645899716132,0.09459999,38930.0,38928.0,0.19156346]
[1645899718888,0.09069999,38930.0,38928.0,0.19156346]
[1645899726387,0.09069999,38930.0,38928.0,0.18996346]
[1645899726887,0.09069999,38930.0,38928.0,1.06656346]
[1645899727098,0.09069999,38930.0,38929.0,0.905049]
[1645899727288,0.09069999,38930.0,38929.0,0.977779]
[1645899727490,0.09069999,38930.0,38929.0,2.329079]
[1645899727994,0.09069999,38930.0,38929.0,2.1752]
[1645899728643,0.09069999,38930.0,38929.0,1.3986]
[1645899729447,0.09069999,38930.0,38929.0,1.488265]
[1645899729651,10.06092269,38938.0,38931.0,0.80203]
[1645899729847,10.06092269,38938.0,38935.0,0.80203]
[1645899729848,0.00073143,38937.0,38935.0,0.80203]
[1645899730046,0.00073143,38937.0,38936.0,2.50053]
[1645899730243,0.00073143,38937.0,38936.0,2.55053]
[1645899730444,0.00073143,38937.0,38936.0,2.60053]
[1645899730644,10.06092269,38938.0,38936.0,2.81978431]
[1645899730845,10.06092269,38938.0,38937.0,1.10203]
[1645899730846,10.06110545,38938.0,38937.0,1.10203]
[1645899731047,10.06110545,38938.0,38937.0,2.50053]
[1645899731848,10.06092269,38938.0,38937.0,2.50053]
[1645899732508,5.01416797,38938.0,38937.0,2.60053]
[1645899732708,5.01416797,38938.0,38937.0,2.80053]
[1645899732709,3.96265613,38938.0,38937.0,2.80053]
[1645899732908,3.15384991,38938.0,38937.0,2.80053]
[1645899733120,2.69379282,38938.0,38937.0,2.80053]
[1645899733311,0.00073095,38945.0,38941.0,0.064197]
[1645899733515,0.00073095,38945.0,38944.0,1.18299396]
[1645899733516,9.5e-07,38945.0,38944.0,1.18299396]
[1645899733715,9.5e-07,38945.0,38944.0,1.95092338]
[1645899733909,0.01,38959.0,38948.0,0.80203]
[1645899734211,0.76661807,38975.0,38956.0,0.80203]
[1645899734212,0.21369032,38971.0,38956.0,0.80203]
[1645899734413,0.2773729,38974.0,38959.0,0.06417]
[1645899734414,0.21369032,38972.0,38959.0,0.06417]
[1645899734609,0.17061463,38964.0,38960.0,0.0473]
[1645899735709,0.21369032,38970.0,38961.0,0.32062942]
[1645899735912,0.21369032,38974.0,38962.0,0.8239]
[1645899736138,0.59609032,38975.0,38964.0,0.7766]
[1645899736339,0.59609032,38975.0,38965.0,0.8239]
[1645899736638,0.59609032,38975.0,38965.0,0.05]
[1645899736639,0.21971494,38974.0,38965.0,0.05]
[1645899736838,0.1689038,38965.0,38964.0,0.1014]
[1645899737038,0.21369032,38974.0,38964.0,1.402]
[1645899737236,0.21369032,38974.0,38964.0,1.452]
[1645899737443,0.59609032,38975.0,38964.0,1.452]
[1645899737638,0.3824,38975.0,38964.0,1.452]
[1645899737837,0.59609032,38975.0,38964.0,1.452]
[1645899738039,0.17207922,38967.0,38964.0,1.452]
[1645899738239,0.17207922,38967.0,38964.0,1.402]
[1645899738939,0.17207922,38967.0,38964.0,1.118417]
[1645899739341,0.00034399,38967.0,38964.0,1.118417]
[1645899739541,0.00034399,38967.0,38964.0,1.368417]
[1645899739992,0.00034399,38967.0,38965.0,0.7766]
[1645899740189,0.20807005,38980.0,38966.0,0.928]
[1645899740389,0.20807005,38980.0,38966.0,0.1514]
[1645899740390,0.23881935,38975.0,38966.0,0.1514]
[1645899740588,0.00034398,38968.0,38966.0,0.1514]
[1645899740789,0.00697971,38980.0,38968.0,0.06417]
[1645899740990,0.2671129,38984.0,38969.0,0.31604518]
[1645899741189,0.2671129,38984.0,38970.0,0.7766]
[1645899741390,0.2671129,38985.0,38972.0,0.7766]
[1645899741588,0.2671129,38986.0,38974.0,0.064159]
[1645899741788,0.21728218,38983.0,38974.0,0.064159]
[1645899741989,0.07218451,38973.0,38971.0,0.1014]
[1645899742595,0.07218451,38973.0,38972.0,0.06416]
[1645899742794,0.07218451,38973.0,38972.0,0.179721]
[1645899742997,0.07218451,38973.0,38972.0,0.343882]
[1645899743195,0.00034394,38976.0,38972.0,0.343882]
[1645899743196,0.00034394,38976.0,38973.0,0.05]
[1645899743397,0.00034394,38976.0,38974.0,2.32798462]
[1645899743636,0.00137542,38986.0,38976.0,0.192408]
[1645899743834,0.01,38989.0,38976.0,0.192408]
[1645899743835,0.01,38989.0,38977.0,1.6339]
[1645899744235,0.20200173,38982.0,38977.0,1.6339]
[1645899744435,0.20200173,38982.0,38977.0,1.5825]
[1645899744634,0.01,38989.0,38977.0,1.5825]
[1645899745035,0.01,38989.0,38979.0,0.7766]
[1645899745239,0.01,38989.0,38978.0,0.36308392]
[1645899745636,0.23161867,38988.0,38978.0,0.36308392]
[1645899746037,0.23161867,38988.0,38979.0,0.7766]
[1645899746339,0.23161867,38988.0,38978.0,0.42723492]
[1645899746737,0.23161867,38988.0,38978.0,0.114151]
[1645899746938,0.23161867,38988.0,38978.0,0.05]
[1645899747139,0.23161867,38988.0,38977.0,2.4591]
[1645899747401,0.23161867,38988.0,38977.0,1.5825]
[1645899747804,0.00034417,38984.0,38977.0,1.5825]
[1645899748103,0.00034417,38984.0,38979.0,0.7766]
[1645899748302,0.00034417,38984.0,38981.0,0.7766]
[1645899748500,0.00034417,38984.0,38982.0,0.828]
[1645899748702,0.01,38989.0,38983.0,2.359]
[1645899748901,0.01,38989.0,38983.0,2.4104]
[1645899749201,0.01,38989.0,38985.0,0.7766]
[1645899749400,0.01,38989.0,38986.0,1.5824]
[1645899749803,0.01,38989.0,38986.0,1.6324]
[1645899750003,0.01,38989.0,38986.0,1.6274]
[1645899750202,0.0013764,38995.0,38986.0,1.6274]
[1645899751003,0.20496633,38990.0,38986.0,1.6274]
[1645899751659,0.20496633,38990.0,38986.0,1.5824]
[1645899751857,0.20496633,38990.0,38986.0,1.8324]
[1645899752058,0.20496633,38990.0,38986.0,0.96475701]
[1645899752659,0.13496633,38990.0,38986.0,0.96475701]
[1645899753063,0.1342858,38990.0,38986.0,1.01475701]
[1645899754264,0.1342858,38990.0,38986.0,0.96475701]
[1645899755085,0.1342858,38990.0,38986.0,0.2416942]
[1645899757189,0.31792956,38989.0,38986.0,0.2416942]
[1645899757398,0.0853412,38985.0,38978.0,0.67216081]
[1645899757588,0.0853412,38985.0,38978.0,1.49876081]
[1645899757786,0.0853412,38985.0,38978.0,1.62603973]
[1645899758197,0.0853412,38985.0,38978.0,1.61291581]
[1645899758389,0.0853412,38985.0,38978.0,1.62603973]
[1645899758632,0.0853412,38985.0,38978.0,1.61291581]
[1645899758935,0.0853412,38985.0,38980.0,0.07727292]
[1645899759231,0.0853412,38985.0,38982.0,0.064149]
[1645899760035,0.0853412,38985.0,38984.0,0.01312392]
[1645899760237,0.00017904,38991.0,38986.0,0.7766]
[1645899760437,0.00017904,38991.0,38990.0,0.01312392]
[1645899760636,0.00017904,38991.0,38989.0,0.01312392]
[1645899760839,0.3802,39002.0,38989.0,0.01312392]
[1645899760840,0.19819307,38999.0,38990.0,0.76943]
[1645899761038,0.31875478,38998.0,38990.0,0.76943]
[1645899761240,0.31875478,38998.0,38990.0,0.81943]
[1645899761437,0.31375478,38998.0,38990.0,0.81943]
[1645899762036,0.20877267,38993.0,38990.0,0.81943]
[1645899762888,0.20877267,38993.0,38990.0,0.76943]
[1645899763086,0.20877267,38993.0,38990.0,0.15192492]
[1645899763288,0.01025,38999.0,38990.0,0.15192492]
[1645899763492,0.08687608,38996.0,38990.0,0.15192492]
[1645899763687,0.31556486,38995.0,38990.0,0.15192492]
[1645899764388,0.11230608,38991.0,38978.0,0.67216081]
[1645899764694,0.40744094,38990.0,38978.0,0.67216081]
[1645899764887,0.41770094,38990.0,38978.0,0.67216081]
[1645899765487,0.21632419,38983.0,38978.0,0.67216081]
[1645899765890,0.32056486,38982.0,38978.0,0.67216081]
[1645899766351,0.30320027,38983.0,38978.0,0.67216081]
[1645899766750,0.3198638,38982.0,38978.0,0.67216081]
[1645899768154,0.0472,38981.0,38978.0,0.67216081]
[1645899768354,0.3198638,38980.0,38978.0,0.67216081]
[1645899768553,0.08687608,38979.0,38978.0,0.67216081]